lending/lending_fUSD_20250406
["ID","MTS","AMOUNT","RATE_DAILY","PERIOD"]
[357236898,1743927038402,-2000.0,0.00044931,120]
[357236899,1743927038412,-1000.0,0.00045,120]
[357236900,1743927038421,-609.07664081,0.00045,120]
[357236901,1743927038431,-2000.0,0.00045205,120]
[357236902,1743927038441,-151.0,0.00045363,2]
[357236903,1743927038452,-2000.0,0.00045479,120]
[357236904,1743927038461,-1167.905127,0.00045753,120]
[357236905,1743927038470,-28.36346438,0.00045879,2]
[357236906,1743927038482,-3386.44945899,0.00045879,2]
[357236907,1743927038497,-437.04707663,0.00045879,2]
[357236908,1743927038507,-153.38,0.0004604,2]
[357236909,1743927038516,-203.88292337,0.000461,120]
[357236910,1743927038527,-96.11707663,0.000461,120]
[357236911,1743927038538,-340.82,0.00046104,3]
[357236912,1743927038548,-176.48,0.0004635,2]
[357236913,1743927038558,-1000.0,0.00046407,120]
[357236914,1743927038568,-1037.51,0.00046501,2]
[357236915,1743927038579,-250.0,0.00046732,120]
[357236916,1743927038589,-157.45,0.000468,42]
[357236917,1743927038599,-157.45,0.000468,42]
[357236918,1743927038608,-157.45,0.000468,42]
[357236919,1743927038618,-157.45,0.000468,42]
[357236920,1743927038628,-157.45,0.000468,42]
[357236921,1743927038638,-157.45,0.000468,42]
[357236922,1743927038648,-157.45,0.000468,42]
[357236923,1743927038657,-157.45,0.000468,42]
[357236924,1743927038667,-157.45,0.000468,42]
[357236925,1743927038676,-157.45,0.000468,42]
[357236926,1743927038686,-157.45,0.000468,42]
[357236927,1743927038695,-157.45,0.000468,42]
[357236928,1743927038704,-157.45,0.000468,42]
[357236929,1743927038714,-157.45,0.000468,42]
[357236931,1743927038725,-157.45,0.000468,42]
[357236933,1743927038734,-157.45,0.000468,42]
[357236934,1743927038743,-157.45,0.000468,42]
[357236936,1743927038753,-157.45,0.000468,42]
[357236938,1743927038762,-157.45,0.000468,42]
[357236940,1743927038771,-157.45,0.000468,42]
[357236941,1743927038781,-157.45,0.000468,42]
[357236943,1743927038790,-157.45,0.000468,42]
[357236944,1743927038800,-157.45,0.000468,42]
[357236945,1743927038809,-157.45,0.000468,42]
[357236946,1743927038818,-212.8626,0.00046888,30]
[357236947,1743927038828,-275.59,0.00047034,2]
[357236948,1743927038837,-1384.09,0.00047366,120]
[357236949,1743927038846,-300.0,0.00047507,120]
[357236950,1743927038856,-301.56298907,0.00048,120]
[357236951,1743927038865,-171.6,0.00048,120]
[357236953,1743927038875,-3821.8937039,0.00048,120]
[357236954,1743927038884,-160.08,0.00048269,2]
[357236956,1743927038893,-500.0,0.00048299,120]
[357236958,1743927038902,-500.0,0.00048299,120]
[357236959,1743927038910,-500.0,0.00048299,120]
[357236960,1743927038919,-500.0,0.00048299,120]
[357236961,1743927038928,-500.0,0.00048299,120]
[357236962,1743927038938,-500.0,0.00048299,120]
[357236963,1743927038948,-500.0,0.00048299,120]
[357236964,1743927038957,-500.0,0.00048299,120]
[357236965,1743927038966,-500.0,0.00048299,120]
[357236966,1743927038975,-500.0,0.00048299,120]
[357236967,1743927039099,-500.0,0.00048299,120]
[357236968,1743927039109,-500.0,0.00048299,120]
[357236969,1743927039119,-500.0,0.00048299,120]
[357236970,1743927039129,-500.0,0.00048299,120]
[357236971,1743927039138,-500.0,0.00048299,120]
[357236972,1743927039148,-500.0,0.00048299,120]
[357236973,1743927039158,-500.0,0.00048299,120]
[357236974,1743927039168,-500.0,0.00048299,120]
[357236975,1743927039177,-500.0,0.00048299,120]
[357236976,1743927039186,-500.0,0.00048299,120]
[357236977,1743927039196,-500.0,0.00048299,120]
[357236978,1743927039205,-500.0,0.00048299,120]
[357236979,1743927039215,-500.0,0.00048299,120]
[357236980,1743927039225,-224.68161016,0.00048299,120]
[357236981,1743927039235,-500.0,0.00048299,120]
[357236982,1743927039245,-500.0,0.00048299,120]
[357236983,1743927039255,-500.0,0.00048299,120]
[357236984,1743927039265,-158.54,0.000483,120]
[357236985,1743927039275,-784.967,0.000483,83]
[357236986,1743927039285,-150.0,0.00048439,7]
[357236987,1743927039295,-500.0,0.00048711,30]
[357236988,1743927039304,-795.08920025,0.000488,120]
[357236989,1743927039314,-300.0,0.00048913,120]
[357236990,1743927039326,-23900.0,0.00049084,2]
[357236991,1743927039337,-151.67485452,0.00049215,15]
[357236992,1743927039347,-515.13,0.00049216,2]
[357236993,1743927039356,-500.0,0.00049273,10]
[357236994,1743927039367,-275.59,0.00049298,2]
[357236995,1743927039377,-658.31460546,0.00049299,120]
[357236996,1743927039386,-658.31460546,0.00049299,120]
[357236997,1743927039397,-658.31460546,0.00049299,120]
[357236998,1743927039408,-658.31460546,0.00049299,120]
[357236999,1743927039418,-658.31460546,0.00049299,120]
[357237000,1743927039428,-658.31460546,0.00049299,120]
[357237001,1743927039438,-658.31460546,0.00049299,120]
[357237002,1743927039447,-658.31460546,0.00049299,120]
[357237003,1743927039458,-658.31460546,0.00049299,120]
[357237004,1743927039467,-658.31460546,0.00049299,120]
[357237005,1743927039477,-658.31460546,0.00049299,120]
[357237006,1743927039487,-658.31460546,0.00049299,120]
[357237007,1743927039496,-658.31460546,0.00049299,120]
[357237008,1743927039506,-658.31460546,0.00049299,120]
[357237009,1743927039515,-658.31460546,0.00049299,120]
[357237010,1743927039525,-658.31460546,0.00049299,120]
[357237011,1743927039534,-658.31460546,0.00049299,120]
[357237012,1743927039543,-658.31460546,0.00049299,120]
[357237013,1743927039553,-658.31460546,0.00049299,120]
[357237014,1743927039562,-658.31460546,0.00049299,120]
[357237015,1743927039571,-59008.42,0.000493,120]
[357237016,1743927039580,-500.0,0.000493,30]
[357237017,1743927039590,-527.95350245,0.00049315,120]
[357237018,1743927039600,-200.64,0.00049381,120]
[357237019,1743927039610,-157.45,0.000494,45]
[357237020,1743927039619,-157.45,0.000494,45]
[357237021,1743927039629,-157.45,0.000494,45]
[357237022,1743927039639,-157.45,0.000494,45]
[357237023,1743927039648,-157.45,0.000494,45]
[357237024,1743927039657,-157.45,0.000494,45]
[357237025,1743927039667,-157.45,0.000494,45]
[357237026,1743927039677,-157.45,0.000494,45]
[357237027,1743927039687,-157.45,0.000494,45]
[357237028,1743927039697,-157.45,0.000494,45]
[357237029,1743927039706,-157.45,0.000494,45]
[357237030,1743927039716,-157.45,0.000494,45]
[357237031,1743927039725,-157.45,0.000494,45]
[357237032,1743927039735,-157.45,0.000494,45]
[357237033,1743927039744,-157.45,0.000494,45]
[357237034,1743927039754,-157.45,0.000494,45]
[357237035,1743927039764,-157.45,0.000494,45]
[357237036,1743927039774,-157.45,0.000494,45]
[357237037,1743927039784,-157.45,0.000494,45]
[357237038,1743927039794,-157.45,0.000494,45]
[357237039,1743927039806,-157.45,0.000494,45]
[357237040,1743927039816,-157.45,0.000494,45]
[357237041,1743927039825,-157.45,0.000494,45]
[357237042,1743927039838,-157.45,0.000494,45]
[357237043,1743927039847,-1937.04792321,0.0005,120]
[357237044,1743927039856,-500.0,0.00050105,60]
[357237045,1743927039865,-500.0,0.0005015,60]
[357237046,1743927039876,-500.0,0.00050177,60]
[357237047,1743927039885,-300.0,0.0005032,120]
[357237048,1743927039897,-1000.0,0.00050699,2]
[357237049,1743927039906,-501.92710556,0.00050773,10]
[357237050,1743927039915,-525.62100968,0.00050773,10]
[357237051,1743927039926,-505.9650105,0.00050773,10]
[357237052,1743927039935,-969.97971381,0.000508,61]
[357237053,1743927039945,-22430.3963823,0.000508,61]
[357237054,1743927039954,-59008.42,0.000508,120]
[357237055,1743927039963,-1000.0,0.00050858,120]
[357237056,1743927039973,-653.98716226,0.0005089,23]
[357237057,1743927039984,-59008.42,0.000509,120]
[357237058,1743927039993,-4514.89513001,0.00050939,4]
[357237059,1743927040007,-323.18839498,0.00050939,4]
[357237060,1743927040019,-2005.03887063,0.00050939,4]
[357237061,1743927040028,-20529.3671869,0.00050949,4]
[357237062,1743927040038,-500.0,0.00050959,120]
[357237063,1743927040048,-500.0,0.00050959,120]
[357237064,1743927040058,-500.0,0.00050959,120]
[357237065,1743927040068,-500.0,0.00050959,120]
[357237066,1743927040078,-500.0,0.00050959,120]
[357237067,1743927040087,-500.0,0.00050959,120]
[357237068,1743927040097,-500.0,0.00050959,120]
[357237069,1743927040106,-500.0,0.00050959,120]
[357237070,1743927040115,-500.0,0.00050959,120]
[357237071,1743927040125,-500.0,0.00050959,120]
[357237072,1743927040135,-500.0,0.00050959,120]
[357237073,1743927040144,-500.0,0.00050959,120]
[357237074,1743927040154,-500.0,0.00050959,120]
[357237075,1743927040164,-500.0,0.00050959,120]
[357237076,1743927040174,-450.0,0.00050959,120]
[357237077,1743927040184,-500.0,0.00050959,120]
[357237078,1743927040194,-500.0,0.00050959,120]
[357237079,1743927040204,-500.0,0.00050959,120]
[357237080,1743927040214,-500.0,0.00050959,120]
[357237081,1743927040224,-500.0,0.00050959,120]
[357237082,1743927040233,-500.0,0.00050959,120]
[357237083,1743927040243,-500.0,0.00050959,120]
[357237084,1743927040252,-500.0,0.00050959,120]
[357237085,1743927040261,-500.0,0.00050959,120]
[357237086,1743927040272,-500.0,0.00050959,120]
[357237087,1743927040281,-500.0,0.00050959,120]
[357237088,1743927040291,-500.0,0.00050959,120]
[357237089,1743927040300,-500.0,0.00050959,120]
[357237090,1743927040309,-500.0,0.00050959,120]
[357237091,1743927040319,-500.0,0.00050959,120]
[357237092,1743927040331,-500.0,0.00050959,120]
[357237093,1743927040340,-500.0,0.00050959,120]
[357237095,1743927040350,-500.0,0.00050959,120]
[357237096,1743927040359,-500.0,0.00050959,120]
[357237097,1743927040370,-268.88405971,0.00050973,10]
[357237098,1743927040379,-6843.12239562,0.0005098,4]
[357237099,1743927040389,-20529.3671869,0.0005098,4]
[357237100,1743927040398,-13686.2447912,0.0005099,4]
[357237101,1743927040410,-47901.8567693,0.0005099,4]
[357237102,1743927040419,-39999.82,0.00051,2]
[357237103,1743927040429,-59008.42,0.00051,120]
[357237104,1743927040438,-275.59,0.00051562,2]
[357237105,1743927040447,-1000.0,0.00051698,120]
[357237106,1743927040457,-1000.0,0.00051698,120]
[357237107,1743927040466,-1000.0,0.00051698,120]
[357237108,1743927040476,-947.23,0.00051698,120]
[357237109,1743927040486,-1000.0,0.00051698,120]
[357237110,1743927040495,-152.77321102,0.00051726,120]
[357237111,1743927040505,-1384.09,0.00051844,120]
[357237112,1743927040515,-6843.12239562,0.0005198,4]
[357237113,1743927040524,-157.45,0.00052,51]
[357237114,1743927040534,-157.45,0.00052,51]
[357237115,1743927040543,-157.45,0.00052,51]
[357237116,1743927040553,-157.45,0.00052,51]
[357237117,1743927040563,-157.45,0.00052,51]
[357237118,1743927040572,-157.45,0.00052,51]
[357237119,1743927040581,-157.45,0.00052,51]
[357237120,1743927040590,-157.45,0.00052,51]
[357237121,1743927040600,-157.45,0.00052,51]
[357237122,1743927040609,-157.45,0.00052,51]
[357237123,1743927040618,-157.45,0.00052,51]
[357237124,1743927040628,-157.45,0.00052,51]
[357237125,1743927040637,-157.45,0.00052,51]
[357237126,1743927040647,-157.45,0.00052,51]
[357237127,1743927040656,-157.45,0.00052,51]
[357237128,1743927040665,-157.45,0.00052,51]
[357237129,1743927040674,-157.45,0.00052,51]
[357237130,1743927040683,-157.45,0.00052,51]
[357237131,1743927040693,-157.45,0.00052,51]
[357237132,1743927040702,-157.45,0.00052,51]
[357237133,1743927040711,-157.45,0.00052,51]
[357237134,1743927040721,-157.45,0.00052,51]
[357237135,1743927040731,-157.45,0.00052,51]
[357237136,1743927040740,-157.45,0.00052,51]
[357237137,1743927040749,-500.0,0.00052932,60]
[357237138,1743927040758,-500.0,0.00053062,60]
[357237139,1743927040768,-6843.12239562,0.00053265,4]
[357237140,1743927040777,-275.59,0.00053826,2]
[357237141,1743927040787,-200.0,0.00054,120]
[357237142,1743927040796,-163.0,0.0005437,120]
[357237143,1743927040806,-157.45,0.000546,54]
[357237144,1743927040815,-157.45,0.000546,54]
[357237145,1743927040825,-157.45,0.000546,54]
[357237146,1743927040834,-157.45,0.000546,54]
[357237147,1743927040844,-157.45,0.000546,54]
[357237148,1743927040854,-157.45,0.000546,54]
[357237149,1743927040864,-157.45,0.000546,54]
[357237150,1743927040874,-157.45,0.000546,54]
[357237151,1743927040883,-157.45,0.000546,54]
[357237152,1743927040893,-157.45,0.000546,54]
[357237153,1743927040902,-157.45,0.000546,54]
[357237154,1743927040911,-157.45,0.000546,54]
[357237155,1743927040920,-157.45,0.000546,54]
[357237156,1743927040930,-157.45,0.000546,54]
[357237157,1743927040940,-157.45,0.000546,54]
[357237158,1743927040950,-157.45,0.000546,54]
[357237159,1743927040960,-500.0,0.00054681,60]
[357237160,1743927040969,-251.02938972,0.00054752,10]
[357237161,1743927040978,-500.0,0.00054798,60]
[357237162,1743927040989,-1032.84,0.00055,100]
[357237163,1743927040998,-275.59,0.0005609,2]
[357237164,1743927041007,-1384.09,0.00056323,120]
[357237165,1743927041016,-1000.0,0.00057215,120]
[357237166,1743927041026,-275.59,0.00058354,2]
[357237167,1743927041036,-300.0,0.000584,120]
[357237169,1743927041045,-500.0,0.00058621,120]
[357237171,1743927041054,-500.0,0.00059726,120]
[357237173,1743927041064,-6843.12239562,0.0005998,5]
[357237175,1743927041073,-1000.0,0.0006,120]
[357237177,1743927041082,-1000.0,0.0006,120]
[357237179,1743927041091,-1000.0,0.0006,120]
[357237181,1743927041100,-1000.0,0.0006,120]
[357237183,1743927041109,-1000.0,0.0006,120]
[357237184,1743927041118,-200.0,0.0006,120]
[357237186,1743927041128,-1000.0,0.0006,120]
[357237189,1743927041139,-1000.0,0.0006,120]
[357237191,1743927041149,-1000.0,0.0006,120]
[357237193,1743927041159,-793.44050777,0.0006,120]
[357237245,1743927043471,-206.55949223,0.0006,120]
[357237246,1743927043482,-1319.01797298,0.0006008,5]
[357237247,1743927043877,-728.7613594,0.0006008,5]
[357237248,1743927043896,-497.06061393,0.0006008,5]
[357237249,1743927043908,-11141.40484489,0.0006008,5]
[357237250,1743927043917,-3598.59738397,0.0006009,5]
[357237251,1743927043960,-1376.87102119,0.0006009,5]
[357237270,1743927046505,-500.0,0.0006009,5]
[357237271,1743927046516,-603.81862665,0.0006009,5]
[357237272,1743927046560,-854.607551,0.0006009,5]
[357237273,1743927046572,-829.7,0.0006009,5]
[357237280,1743927537926,1800.0,0.00044418,120]
[357237287,1743927908731,1099.93006184,0.00044418,90]
[357237288,1743927910166,153.43877127,0.00044418,120]
[357237289,1743927911361,999.999992,0.00044418,120]
[357237290,1743927912540,5211.02887885,0.00044418,30]
[357237291,1743927912860,2271.26446036,0.00044418,120]
[357237292,1743927913057,775.56920886,0.00044418,30]
[357237293,1743927913088,778.51629297,0.00044418,91]
[357237294,1743927914201,713.39343543,0.00044418,30]
[357237295,1743927914566,3231910.31703132,0.00044418,30]
[357237296,1743927914596,1497443.90822325,0.00044418,30]
[357237297,1743927929128,1095.03820039,0.00011,2]
[357237298,1743927929157,761.3785313,0.00011,2]
[357237299,1743927943255,57317.14346986,0.0002,30]
[357237305,1743928121102,-13761.0,0.00015,2]
[357237308,1743928147331,-46989.90436,0.00015,2]
[357237309,1743928149178,-262.429949,0.00014925,2]
[357237310,1743928149200,-6738.05048337,0.00015,2]
[357237312,1743928150720,-164.13,0.00015,2]
[357237313,1743928151099,-4396.965412,0.00015,2]
[357237314,1743928158091,-8376.34813812,0.00015,2]
[357237316,1743928159139,-6927.0892089,0.00015,2]
[357237317,1743928164113,-2721.69279688,0.00015,2]
[357237318,1743928164191,-2500.0,0.000199,2]
[357237319,1743928164214,-313440.4348713,0.0002,2]
[357237320,1743928164238,-46107.7219919,0.000248,3]
[357237321,1743928164258,-793.67463119,0.00030187,3]
[357237322,1743928164278,-3857.10855284,0.000318,2]
[357237323,1743928164298,-1176.26089259,0.00035,40]
[357237324,1743928164318,-151.38136808,0.00035,30]
[357237325,1743928164338,-68706.0076921,0.0003511,30]
[357237326,1743928169086,-735.0,0.0003511,30]
[357237362,1743928231576,-250.0,0.00035109,2]
[357237363,1743928231586,-400.0,0.00035109,2]
[357237364,1743928231595,-5709.9774238,0.0003511,30]
[357237417,1743928237551,-36.10787339,0.0003511,30]
[357237418,1743928237601,-278460.34155563,0.0003511,30]
[357237419,1743928237659,-13710.65601335,0.0003511,30]
[357237420,1743928237718,-21832.90329197,0.0003511,30]
[357237427,1743928239633,-745.812,0.0003511,30]
[357237428,1743928239793,-2072.1828788,0.0003511,30]
[357237465,1743928242896,-7488.72255,0.0003511,30]
[357237474,1743928245537,-43254.2484358,0.0003511,30]
[357237475,1743928245594,-2056.07506595,0.0003511,30]
[357237476,1743928245606,-974.48156948,0.0003511,30]
[357237477,1743928245655,-102664.504,0.0003511,30]
[357237478,1743928245667,-498.05442,0.0003511,30]
[357237479,1743928245678,-827.7,0.0003511,30]
[357237480,1743928245801,-150456.7025075,0.0003511,30]
[357237481,1743928245879,-332.41660496,0.0003511,30]
[357237492,1743928907113,-4542.90472486,0.00033,2]
[357237493,1743928907137,-168.49891184,0.000349,2]
[357237494,1743928907161,-321.73832356,0.000349,2]
[357237495,1743928907186,-1509.32385628,0.00035,2]
[357237496,1743928907208,-150.0,0.00035,120]
[357237497,1743928907232,-1000.0,0.00035,2]
[357237498,1743928907255,-2500.0,0.00035,2]
[357237499,1743928907278,-1509.32385628,0.00035008,2]
[357237500,1743928907301,-1509.32385628,0.00035016,2]
[357237501,1743928907326,-1509.32385628,0.00035024,2]
[357237502,1743928907348,-1509.32385628,0.00035032,2]
[357237503,1743928907372,-1509.32385628,0.00035041,2]
[357237504,1743928907395,-1509.32385628,0.00035049,2]
[357237505,1743928907417,-166.42,0.00035049,2]
[357237506,1743928907440,-1509.32385628,0.00035057,2]
[357237507,1743928907465,-1509.32385628,0.00035065,2]
[357237508,1743928907488,-163.37199918,0.00035073,7]
[357237509,1743928907512,-1509.32385628,0.00035073,2]
[357237510,1743928907535,-742.518,0.00035099,41]
[357237511,1743928907559,-13197.1592023,0.000351,3]
[357237512,1743928907583,-152.65,0.000351,2]
[357237513,1743928907611,-201.5475543,0.00035109,7]
[357237514,1743928907634,-200.7624805,0.00035109,7]
[357237515,1743928907657,-961399.19024066,0.0003511,30]
[357237518,1743928926252,-500000.0,0.0003511,30]
[357237519,1743928931707,150.0,0.00033,120]
[357237526,1743929197092,-160.50332531,0.00019,2]
[357237531,1743929235096,-89.49667469,0.00019,2]
[357237532,1743929235116,-300.0,0.00021,2]
[357237533,1743929235138,-166.92,0.00026849,2]
[357237534,1743929235157,-711.0,0.0003,2]
[357237535,1743929235181,-128.9035028,0.000345,12]
[357237536,1743929235208,-71.0964972,0.000345,12]
[357237537,1743929235229,-82.85874195,0.00035,120]
[357237540,1743929287446,-74.14125805,0.00035,120]
[357237541,1743929287479,-545.54455733,0.00035,35]
[357237542,1743929287511,-499380.31418462,0.0003511,30]
[357237543,1743929287912,166.12,0.00013699,2]
[357237544,1743929292346,-500000.0,0.0003511,30]
[357237545,1743929308405,-250.0,0.00025397,2]
[357237546,1743929308430,-500.0,0.000346,12]
[357237547,1743929308455,-800.0,0.000347,12]
[357237548,1743929308480,-1000.0,0.000348,12]
[357237549,1743929308503,-1300.0,0.000349,12]
[357237550,1743929308528,-36045.8581,0.00035,2]
[357237551,1743929308550,-181.07991984,0.0003501,7]
[357237552,1743929308573,-159.34927092,0.0003501,2]
[357237553,1743929308598,-446.05813823,0.0003501,2]
[357237554,1743929308621,-210.57292898,0.0003501,2]
[357237555,1743929308648,-1000.0,0.0003501,2]
[357237556,1743929308673,-14158.3788,0.0003501,2]
[357237557,1743929308697,-43948.70284203,0.000351,3]
[357237558,1743929313237,-100000.0,0.000351,3]
[357237560,1743929316255,-75981.44898797,0.000351,3]
[357237561,1743929316279,-649.28497618,0.00035108,2]
[357237562,1743929316302,-23369.26603585,0.0003511,30]
[357237564,1743929350487,-113193.7534,0.0003511,30]
[357237567,1743929353102,-8734.648566,0.0003511,30]
[357237569,1743929367222,-297.37209216,0.0003501,2]
[357237570,1743929367242,-932.40932784,0.0003511,30]
[357237571,1743929369248,-34260.15418,0.0003511,30]
[357237572,1743929372250,-57380.58074,0.0003511,30]
[357237579,1743929431808,-314.61115765,0.000323,2]
[357237580,1743929431915,-119.02677042,0.000323,2]
[357237581,1743929431925,-36.11991593,0.00035,2]
[357237667,1743929437634,-298.41628407,0.00035,2]
[357237668,1743929437643,-1579.1172,0.00035,2]
[357237669,1743929437652,-169.56705616,0.000351,2]
[357237670,1743929437662,-7810.64769883,0.0003511,30]
[357237671,1743929437747,-8275.55579905,0.0003511,30]
[357237677,1743929440095,-35129.16553006,0.0003511,30]
[357237703,1743929443374,-1934732.74643119,0.0003511,30]
[357237708,1743929443408,-17.83370285,0.0003511,30]
[357237914,1743929445794,-4136.75,0.0003511,30]
[357237915,1743929445848,-349.94409842,0.0003511,30]
[357238626,1743929660756,-4000000.0,0.00044495,30]
[357238789,1743929665199,-3998785.79030179,0.00044495,30]
[357238791,1743929665228,-913.59821338,0.00044495,120]
[357238793,1743929665254,-300.61148483,0.00044495,120]
[357238921,1743929668660,-1756.09060194,0.00044495,120]
[357238923,1743929668685,-2023.82398053,0.00044495,120]
[357238925,1743929668709,-1182.10391217,0.00044495,30]
[357238927,1743929668734,-32514.54136106,0.00044495,30]
[357238929,1743929668759,-2436.46948579,0.00044495,30]
[357238931,1743929668785,-5334.76378234,0.00044495,30]
[357238934,1743929668823,-259.71691327,0.00044495,30]
[357238936,1743929668851,-288.61551145,0.00044495,120]
[357238938,1743929668877,-1323.62387963,0.00044495,120]
[357238940,1743929668904,-979.58535734,0.00044495,120]
[357238942,1743929668929,-36575.62609947,0.00044495,30]
[357238944,1743929668957,-1603.1005366,0.00044495,120]
[357238946,1743929668983,-359.26124983,0.00044495,120]
[357238948,1743929669008,-2064.68509628,0.00044495,30]
[357238949,1743929669034,-769.62437683,0.00044495,90]
[357238950,1743929669058,-156.47422291,0.00044495,120]
[357238951,1743929669082,-824.82444922,0.00044495,120]
[357238953,1743929669107,-317.12048806,0.00044495,60]
[357238955,1743929669132,-427.76614065,0.00044495,30]
[357238957,1743929669157,-1983.50315228,0.00044495,120]
[357238959,1743929669181,-208.63908605,0.00044495,120]
[357238961,1743929669208,-224.67909699,0.00044495,120]
[357238963,1743929669232,-1914.03129003,0.00044495,120]
[357238965,1743929669256,-1280.43775736,0.00044495,120]
[357238967,1743929669281,-305.56042954,0.00044495,60]
[357238969,1743929669305,-216.50840444,0.00044495,120]
[357238970,1743929669336,-1911.36839321,0.00044495,120]
[357238972,1743929669363,-1390.17252242,0.00044495,120]
[357238974,1743929669390,-235.97802667,0.00044495,30]
[357238976,1743929669414,-508.58454696,0.00044495,120]
[357238978,1743929669439,-1262.81739071,0.00044495,120]
[357238980,1743929669464,-4148.88833878,0.00044495,30]
[357238982,1743929669489,-2030.96362374,0.00044495,120]
[357238984,1743929669513,-170.08197095,0.00044495,120]
[357238986,1743929669538,-1409.5604318,0.00044495,120]
[357238987,1743929669564,-1083.69129632,0.00044495,120]
[357238989,1743929669588,-176.72934667,0.00044495,30]
[357238991,1743929669614,-582.59960943,0.00044495,30]
[357238993,1743929669639,-1269.16425301,0.00044495,120]
[357238995,1743929669664,-1007.46558317,0.00044495,30]
[357238997,1743929669688,-953.24603424,0.00044495,120]
[357238999,1743929669713,-392.32963191,0.00044495,30]
[357239001,1743929669743,-1540.11093121,0.00044495,30]
[357239003,1743929669769,-4915.93199694,0.00044495,30]
[357239005,1743929669794,-370.49238153,0.00044495,120]
[357239007,1743929669819,-176.33565142,0.00044495,60]
[357239009,1743929669844,-1045.05111305,0.00044495,35]
[357239011,1743929669869,-1284.71804872,0.00044495,120]
[357239013,1743929669893,-2034.37101264,0.00044495,120]
[357239015,1743929669917,-231.27537989,0.00044495,30]
[357239017,1743929669942,-233.76383881,0.00044495,120]
[357239019,1743929669967,-2046.28523982,0.00044495,30]
[357239025,1743929670120,-5432.95422791,0.00044495,30]
[357239027,1743929670155,-63934.06408699,0.00044495,30]
[357239029,1743929670180,-902.17515725,0.00044495,120]
[357239031,1743929670206,-1763.43048212,0.00044495,30]
[357239033,1743929670231,-2331.02709682,0.00044495,30]
[357239035,1743929670260,-1324.45253918,0.00044495,120]
[357239037,1743929670286,-662.9893875,0.00044495,90]
[357239039,1743929670314,-165.38828533,0.00044495,120]
[357239041,1743929670339,-4087.76638633,0.00044495,30]
[357239043,1743929670367,-160.84528194,0.00044495,30]
[357239045,1743929670392,-1389.35836235,0.00044495,120]
[357239047,1743929670417,-1295.49208505,0.00044495,120]
[357239048,1743929670440,-1100.15863242,0.00044495,120]
[357239050,1743929670464,-1112.34383133,0.00044495,120]
[357239052,1743929670489,-1295.10829539,0.00044495,120]
[357239053,1743929670511,-980.2427771,0.00044495,120]
[357239054,1743929670535,-275.74377187,0.00044495,120]
[357239055,1743929670559,-211.02759625,0.00044495,120]
[357239056,1743929670584,-262.7500504,0.00044495,30]
[357239058,1743929670608,-616.57871346,0.00044495,120]
[357239060,1743929670632,-507.95803854,0.00044495,120]
[357239062,1743929670655,-539.20216291,0.00044495,120]
[357239064,1743929670678,-237.22715436,0.00044495,30]
[357239066,1743929670701,-1000.0,0.00044495,30]
[357239835,1743929692030,170.0,0.00044495,120]
[357240786,1743929719955,170.0,0.00044495,120]
[357241097,1743929744041,170.0,0.00044495,120]
[357241103,1743929795547,1030.32,0.00044495,120]
[357241107,1743929829768,170.0,0.00044495,30]
[357241182,1743930125397,151.0,0.00044484,30]
[357241183,1743930126137,151.0,0.00044484,30]
[357241184,1743930126823,151.0,0.00044484,30]
[357241185,1743930127482,151.0,0.00044484,30]
[357241186,1743930128144,151.0,0.00044484,30]
[357241187,1743930128834,151.0,0.00044484,30]